Workbook

Sheet Instructions
B3: 'BE SEEN' REPORTING SPREADSHEET
B4: INSTRUCTIONS
C6: The 'be seen' webform should be completed by planning applicants, developers and building owners to submit energy performance data at each reporting stage (planning stage, as-built stage and in-use stage) in order to fulfil the requirements of the Mayor's 'be seen' policy set out in London Plan 2021 Policy SI 2. Before completing and submitting this spreadsheet to the GLA, applicants should read the 'Be seen' energy monitoring guidance [https://www.london.gov.uk/what-we-do/planning/implementing-london-plan/london-plan-guidance-and-spgs/be-seen-energy-monitoring-guidance] and ensure that they have fully understood the process necessary to comply with the policy. Please note that at each reporting stage the form cannot be saved midway and so users will need to have all the relevant information to hand for the stage they are reporting against in order to submit the webform. The 'be seen' spreadsheet has been developed to enable development teams to capture all data offline before this is submitted via the webform. By ticking the below box, the person submitting this webform confirms that they are fully authorised by the legal owner to submit data for this development
C19: I am fully authorised by the legal owner to submit data for this development | I19: Select from List
C21: 1. Planning stage
C22: The applicant is required to provide accurate and verified estimates of each of the planning stage performance indicators through the planning stage ‘be seen’ webform, during the planning application determination period. All the required information can be viewed in the ‘be seen’ spreadsheet. Select the "All_Inputs" tab, click current reporting stage and select ‘planning’ from the dropdown list. Applicants should submit the 'be seen' spreadsheet along with any other relevant material as part of the webform submission.
C30: 2. As-built stage Final process to be confirmed
C31: Once the as-built design has been completed and prior to the building being handed over (if applicable), the developer is required to provide an accurate and verified update of the estimated performance indicators submitted at planning stage by selecting the "As-built" reporting stage of the "All_Inputs" tab. This will include a number of additional indicators and a greater level of detail compared to the planning stage, along with some additional contextual information. Reporting from this point on will be for individual Reportable Units (RUs). The 'be seen' spreadsheet should be submitted to the GLA (EnergyMonitoringLPG@london.gov.uk) along with any other relevant material (e.g. DEC certificates etc.) or uploaded to the 'be seen' portal, when this is made available. This section will be updated accordingly.
C40: 3. In-use stage Final process to be confirmed
C41: During the in-use stage, the owner is required to monitor and report accurate and verified annual energy performance data for each qualifying RU via the ‘be seen’ spreadsheet for at least five years once the defects liability period (DLP) is complete. Owners are required to select the "Operational Year xxx" reporting stage of the "All_Inputs" tab, depending on the in-use reporting year, and complete the necessary information. The 'be seen' spreadsheet should be submitted to the GLA (EnergyMonitoringLPG@london.gov.uk) along with any other relevant material (e.g. DEC certificates etc.) or uploaded to the 'be seen' portal, when this is made available. This section will be updated accordingly.
B49: OTHER INSTRUCTIONS
C51: Please enable macros when using this spreadsheet.
C52: Macros are used to show/hide sections of the spreadsheet, depending on the stage in the 'be seen' process and the type of development. If you are unable to use macros, please hide/show rows manually.
C55: Key
C56: User Input Cells
D57: 10086399 | E57: <- Free input (some cells are restricted in terms of the format, e.g. numbers)
D58: 15189683 | E58: <- Drop down selection (these may take up to ~30 seconds to run)
C60: Background Cells
D61: 9294249 | E61: <- Result of an internal calculation
D62: + | E62: <- Hide/show button (click away from the cell and back again to activate).
D63: * | E63: <- Required data
B65: QUERIES / FEEDBACK
C67: Any queries of feedback on this spreadsheet should be submitted to:
C68: EnergyMonitoringLPG@london.gov.uk

Sheet All_Inputs
S1: MAX | T1: COL | U1: =COLUMN(DD3370) -> 108 | AN1: NEVER | AO1: - | DD1: -
T2: ROW | U2: =ROW(DD3370) -> 3370 | AN2: NEVER | AO2: - | DD2: -
A3: NEVER | B3: Y | C3: Y | D3: Y | E3: Y | F3: Y | G3: Y | H3: Y | I3: Y | J3: Y | K3: Y | L3: Y | M3: Y | N3: Y | O3: Y | P3: Y | Q3: Y | R3: Y | S3: Y | T3: Y | U3: Y | V3: Y | W3: Y | X3: Y | Y3: Y | Z3: Y | AA3: Y | AB3: Y | AC3: Y | AD3: Y | AE3: Y | AF3: Y | AG3: Y | AH3: Y | AI3: Y | AJ3: Y | AK3: Y | AL3: Y | AM3: Y | AN3: Y | AO3: Y | AP3: NEVER | AQ3: NEVER | AR3: NEVER | AS3: NEVER | AT3: NEVER | AU3: NEVER | AV3: NEVER | AW3: NEVER | AX3: NEVER | AY3: NEVER | AZ3: NEVER | BA3: =IF($R$9=2,"N","Y") -> Y | BB3: =BA3 -> Y | BC3: Y | BD3: =IF(AND($R$9=3,$S$9=1),"N","Y") -> Y | BE3: =BD3 -> Y | BF3: Y | BG3: Y | BH3: Y | BI3: Y | BJ3: Y | BK3: Y | BL3: Y | BM3: Y | BN3: =IF(AND($R$9=3,$S$9=2),"N","Y") -> Y | BO3: Y | BP3: Y | BQ3: Y | BR3: Y | BS3: Y | BT3: Y | BU3: Y | BV3: Y | BW3: Y | BX3: =IF(AND($R$9=3,$S$9=3),"N","Y") -> Y | BY3: Y | BZ3: Y | CA3: Y | CB3: Y | CC3: Y | CD3: Y | CE3: Y | CF3: Y | CG3: Y | CH3: =IF(AND($R$9=3,$S$9=4),"N","Y") -> Y | CI3: Y | CJ3: Y | CK3: Y | CL3: Y | CM3: Y | CN3: Y | CO3: Y | CP3: Y | CQ3: Y | CR3: =IF(AND($R$9=3,$S$9=5),"N","Y") -> Y | CS3: Y | CT3: Y | CU3: Y | CV3: Y | CW3: Y | CX3: Y | CY3: Y | CZ3: Y | DA3: Y | DB3: NEVER | DC3: NEVER | DD3: Y
B4: MISC | C4: CELL CONTROLS | L4: PROGRESS | Q4: MISC LOCAL CALCS | Y4: RU DATA | AJ4: VBA | AN4: Y | AO4: - | AP4: Gap | AQ4: Category | AS4: Detail | BA4: As Built | BD4: Year 1 | BN4: Year 2 | BX4: Year 3 | CH4: Year 4 | CR4: Year 5 | DD4: -
B5: - | C5: Type | E5: Stage Requirement | I5: Current Stage | L5: Stage | N5: Overall | Q5: Cell | R5: Calcs | Y5: Bldg RUs (EC below) | AE5: Specific RU | AG5: Type | AJ5: Address | AK5: Hide Buttons | AN5: Y | AO5: - | AP5: - | AQ5: 0 | AR5: 2 | AS5: 1 | AT5: 2 | AU5: Units | AV5: Note | AX5: Building / RU Data | AY5: Reqd? | BA5: Data | BB5: Reqd? | BD5: Data | BF5: Data | BG5: Data | BH5: Data | BI5: Data | BJ5: Data | BK5: Data | BL5: Reqd? | BN5: Data | BP5: Data | BQ5: Data | BR5: Data | BS5: Data | BT5: Data | BU5: Data | BV5: Reqd? | BX5: Data | BZ5: Data | CA5: Data | CB5: Data | CC5: Data | CD5: Data | CE5: Data | CF5: Reqd? | CH5: Data | CJ5: Data | CK5: Data | CL5: Data | CM5: Data | CN5: Data | CO5: Data | CP5: Reqd? | CR5: Data | CT5: Data | CU5: Data | CV5: Data | CW5: Data | CX5: Data | CY5: Data | CZ5: Reqd? | DD5: -
B6: Stage | C6: Validation | D6: Default | E6: Summary | F6: Planning | G6: As Built | H6: Operation | I6: Required? | J6: Done? | K6: To Do | L6: Data Req'd | M6: Data ToDo | N6: Total req'd | O6: % To Do | P6: Prog Bar | Q6: Current | R6: Calc A | S6: Calc B | T6: Calc C | U6: Calc D | V6: Calc E | W6: Calc F | X6: Calc G | Y6: Ref | Z6: Raw Type | AA6: Complete | AB6: RU Name | AC6: Resi RU | AD6: For Llord | AE6: RU No. | AF6: Valid? | AG6: Domestic | AH6: Non-Dom | AI6: Landlord | AJ6: Ref | AK6: Live? | AL6: From Row | AM6: To Row | AN6: Y | AO6: - | DD6: -
N7: =SUM(L25:L3361) -> 9 | O7: =SUM(M25:M3361)/N7 -> 0.8888888889 | P7: =ROUND(18*O7,0) -> 16 | X7: RU Row | Y7: 0 | Z7: - | AA7: - | AB7: - | AC7: 0 | AD7: Select from list | AN7: NEVER | AO7: - | AP7: =IF($R$9=0," PLEASE SELECT THE REPORTING STAGE BELOW"," OVERALL PROGRESS") -> PLEASE SELECT THE REPORTING STAGE BELOW | AU7: =IF($R$9=0,"",ROUND(100*(1-O7),0)&"%") ->  | AY7: =IF($R$9=0,"",REPT("g",18-P7)&REPT("c",P7)&" ") ->  | DD7: -
R8: Stage | S8: Year | W8: =IFERROR(LEFT(AD8,FIND("(",AD8)-2),"-") -> - | X8: =ROW(AQ183) -> 183 | Y8: 1 | Z8: =R183 -> - | AA8: =S183 -> - | AB8: =T183 -> - | AC8: =IF(LEFT(Z8,3)="Res",MAX(AC$6:AC7)+1,"-") -> - | AD8: =IF(ISERROR(MATCH(Y8,AC$7:AC$32,0)),"No residential RUs listed","Bldg RU "&INDEX($Y$7:$Y$32,MATCH(Y8,$AC$7:$AC$32,0))&" ("&INDEX($AB$7:$AB$32,MATCH(Y8,$AC$7:$AC$32,0))&")") -> No residential RUs listed | AN8: NEVER | AO8: - | DD8: -
C9: List | D9: Select from list | E9: constant | I9: 1 | J9: =IF(R9>0,1,0) -> 0 | K9: =IF(AND(J9=0,I9=1),1,0) -> 1 | R9: =IF(LEFT(AX:AX,2)="Pl",1,IF(LEFT(AX:AX,2)="As",2,IF(LEFT(AX:AX,2)="Op",3,0))) -> 0 | S9: =IF(LEFT(AX:AX,2)="Op",RIGHT(AX:AX,1)*1,0) -> 0 | W9: =IFERROR(LEFT(AD9,FIND("(",AD9)-2),"-") -> - | X9: =ROW(AQ295) -> 295 | Y9: =Y8+1 -> 2 | Z9: =R295 -> - | AA9: =S295 -> - | AB9: - | AC9: =IF(LEFT(Z9,3)="Res",MAX(AC$6:AC8)+1,"-") -> - | AD9: =IF(ISERROR(MATCH(Y9,AC$7:AC$32,0)),"-","Bldg RU "&INDEX($Y$7:$Y$32,MATCH(Y9,$AC$7:$AC$32,0))&" ("&INDEX($AB$7:$AB$32,MATCH(Y9,$AC$7:$AC$32,0))&")") -> - | AL9: 10 | AM9: =ROW(AO3370) -> 3370 | AN9: NEVER | AO9: 1 | AQ9: CURRENT REPORTING STAGE - - - - - - - - - - - - - - - - - - - - - - - - - - - - - - - - - - >> | AX9: Select from list | AY9: =IF(I9=1,"*","") -> * | DD9: -
W10: - | X10: =X9+(X9-X8) -> 407 | Y10: 3 | Z10: =R407 -> - | AA10: =S407 -> - | AB10: - | AC10: =IF(LEFT(Z10,3)="Res",MAX(AC$6:AC9)+1,"-") -> - | AD10: - | AN10: =IF($R$9>1,"N","Y") -> Y | AO10: =IF(AN11=AN10,AO11+1,1) -> 10 | DD10: -
W11: - | X11: 519 | Y11: 4 | Z11: =R519 -> - | AA11: =S519 -> - | AB11: - | AC11: =IF(LEFT(Z11,3)="Res",MAX(AC$6:AC10)+1,"-") -> - | AD11: - | AN11: =AN10 -> Y | AO11: 9 | AQ11: REPORTABLE UNITS PROGRESS | DD11: -
W12: - | X12: 631 | Y12: 5 | Z12: =R631 -> - | AA12: =S631 -> - | AB12: - | AC12: =IF(LEFT(Z12,3)="Res",MAX(AC$6:AC11)+1,"-") -> - | AD12: - | AN12: =AN11 -> Y | AO12: 8 | AR12: Number of building (residential/non-residential) RUs with missing data | AX12: =T168-SUM(T171:T175)&" out of "&T168&" RUs" -> 0 out of 0 RUs | DD12: -
W13: - | X13: 743 | Y13: 6 | Z13: =R743 -> - | AA13: =S743 -> - | AB13: - | AC13: =IF(LEFT(Z13,3)="Res",MAX(AC$6:AC12)+1,"-") -> - | AD13: - | AN13: =AN12 -> Y | AO13: 7 | AR13: Number of energy centre RUs with missing data | AX13: =AX176-T176&" out of "&AX176&" RUs" -> 0 out of 0 RUs | DD13: -
W14: - | X14: 855 | Y14: 7 | Z14: =R855 -> - | AA14: =S855 -> - | AB14: - | AC14: =IF(LEFT(Z14,3)="Res",MAX(AC$6:AC13)+1,"-") -> - | AD14: - | AN14: Y | AO14: 6 | DD14: -
W15: - | X15: 967 | Y15: 8 | Z15: =R967 -> - | AA15: =S967 -> - | AB15: - | AC15: =IF(LEFT(Z15,3)="Res",MAX(AC$6:AC14)+1,"-") -> - | AD15: - | AN15: Y | AO15: 5 | DD15: -
W16: - | X16: 1079 | Y16: 9 | Z16: =R1079 -> - | AA16: =S1079 -> - | AB16: - | AC16: =IF(LEFT(Z16,3)="Res",MAX(AC$6:AC15)+1,"-") -> - | AD16: - | AN16: Y | AO16: 4 | DD16: -
W17: - | X17: 1191 | Y17: 10 | Z17: =R1191 -> - | AA17: =S1191 -> - | AB17: - | AC17: =IF(LEFT(Z17,3)="Res",MAX(AC$6:AC16)+1,"-") -> - | AD17: - | AN17: Y | AO17: 3 | DD17: -
W18: - | X18: 1303 | Y18: 11 | Z18: =R1303 -> - | AA18: =S1303 -> - | AB18: - | AC18: =IF(LEFT(Z18,3)="Res",MAX(AC$6:AC17)+1,"-") -> - | AD18: - | AN18: Y | AO18: 2 | DD18: -
W19: - | X19: 1415 | Y19: 12 | Z19: =R1415 -> - | AA19: =S1415 -> - | AB19: - | AC19: =IF(LEFT(Z19,3)="Res",MAX(AC$6:AC18)+1,"-") -> - | AD19: - | AN19: Y | AO19: 1 | DD19: -
W20: - | X20: 1527 | Y20: 13 | Z20: =R1527 -> - | AA20: =S1527 -> - | AB20: - | AC20: =IF(LEFT(Z20,3)="Res",MAX(AC$6:AC19)+1,"-") -> - | AD20: - | AN20: NEVER | AO20: 1 | DD20: -
N21: =SUM(L25:L113) -> 9 | O21: =SUM(M25:M113)/N21 -> 0.8888888889 | P21: =ROUND(18*O21,0) -> 16 | W21: - | X21: 1639 | Y21: 14 | Z21: =R1639 -> - | AA21: =S1639 -> - | AB21: - | AC21: =IF(LEFT(Z21,3)="Res",MAX(AC$6:AC20)+1,"-") -> - | AD21: - | AO21: 2 | AP21: CONTEXTUAL DATA | AV21: =IF($R$9=0,"",IF(N21=0,"not req'd at this stage","Progress: "&ROUND(100*(1-O21),0)&"%")) ->  | AX21: =IF(OR(N21=0,$R$9=0),"",REPT("g",18-P21)&REPT("c",P21)) ->  | DD21: -
W22: - | X22: 1751 | Y22: 15 | Z22: =R1751 -> - | AA22: =S1751 -> - | AB22: - | AC22: =IF(LEFT(Z22,3)="Res",MAX(AC$6:AC21)+1,"-") -> - | AD22: - | AO22: 1 | DD22: -
N23: =(L25+L29) -> 5 | O23: =(M25+M29)/N23 -> 1 | P23: =ROUND(18*O23,0) -> 18 | W23: - | X23: 1863 | Y23: 16 | Z23: =R1863 -> - | AA23: =S1863 -> - | AB23: - | AC23: =IF(LEFT(Z23,3)="Res",MAX(AC$6:AC22)+1,"-") -> - | AD23: - | AK23: =IF($R$9>0,1,0) -> 0 | AL23: 24 | AM23: 34 | AO23: 1 | AP23: =IF(AK23=1,"+","") ->  | AQ23: ORGANISATION & CONTACT DETAILS | DD23: -
W24: - | X24: 1975 | Y24: 17 | Z24: =R1975 -> - | AA24: =S1975 -> - | AB24: - | AC24: =IF(LEFT(Z24,3)="Res",MAX(AC$6:AC23)+1,"-") -> - | AD24: - | AN24: =IF($R$9>0,"N","Y") -> Y | AO24: 11 | DD24: -
L25: =SUM(I26:I27) -> 2 | M25: =SUM(K26:K27) -> 2 | W25: - | X25: 2087 | Y25: 18 | Z25: =R2087 -> - | AA25: =S2087 -> - | AB25: - | AC25: =IF(LEFT(Z25,3)="Res",MAX(AC$6:AC24)+1,"-") -> - | AD25: - | AN25: =AN24 -> Y | AO25: 10 | AR25: ORGANISATION DETAILS | DD25: -
C26: - | D26: NULL | E26: constant | I26: 1 | J26: =IF(OR(AX:AX="",AX:AX="-",AX:AX=" "),0,1) -> 0 | K26: =IF(AND(J26=0,I26=1),1,0) -> 1 | W26: - | X26: 2199 | Y26: 19 | Z26: =R2199 -> - | AA26: =S2199 -> - | AB26: - | AC26: =IF(LEFT(Z26,3)="Res",MAX(AC$6:AC25)+1,"-") -> - | AD26: - | AN26: Y | AO26: 9 | AS26: Organisation Name | AV26: =IF(K26=1,"Must complete ->","") -> Must complete -> | AY26: =IF(I26=1,"*","") -> * | DD26: -
C27: - | D27: NULL | E27: constant | I27: 1 | J27: =IF(OR(AX:AX="",AX:AX="-",AX:AX=" "),0,1) -> 0 | K27: =IF(AND(J27=0,I27=1),1,0) -> 1 | W27: - | X27: 2311 | Y27: 20 | Z27: =R2311 -> - | AA27: =S2311 -> - | AB27: - | AC27: =IF(LEFT(Z27,3)="Res",MAX(AC$6:AC26)+1,"-") -> - | AD27: - | AN27: Y | AO27: 8 | AS27: Organisation Address | AV27: =IF(K27=1,"Must complete ->","") -> Must complete -> | AY27: =IF(I27=1,"*","") -> * | DD27: -
W28: - | X28: 2423 | Y28: 21 | Z28: =R2423 -> - | AA28: =S2423 -> - | AB28: - | AC28: =IF(LEFT(Z28,3)="Res",MAX(AC$6:AC27)+1,"-") -> - | AD28: - | AN28: Y | AO28: 7 | DD28: -
L29: =SUM(I30:I34) -> 3 | M29: =SUM(K30:K34) -> 3 | W29: - | X29: 2535 | Y29: 22 | Z29: =R2535 -> - | AA29: =S2535 -> - | AB29: - | AC29: =IF(LEFT(Z29,3)="Res",MAX(AC$6:AC28)+1,"-") -> - | AD29: - | AN29: Y | AO29: 6 | AR29: CONTACT DETAILS | DD29: -
C30: - | D30: NULL | E30: constant | I30: 1 | J30: =IF(OR(AX:AX="",AX:AX="-",AX:AX=" "),0,1) -> 0 | K30: =IF(AND(J30=0,I30=1),1,0) -> 1 | W30: - | X30: 2647 | Y30: 23 | Z30: =R2647 -> - | AA30: =S2647 -> - | AB30: - | AC30: =IF(LEFT(Z30,3)="Res",MAX(AC$6:AC29)+1,"-") -> - | AD30: - | AN30: Y | AO30: 5 | AS30: Contact Name | AV30: =IF(K30=1,"Must complete ->","") -> Must complete -> | AY30: =IF(I30=1,"*","") -> * | DD30: -
C31: - | D31: NULL | E31: constant | I31: 1 | J31: =IF(OR(AX:AX="",AX:AX="-",AX:AX=" "),0,1) -> 0 | K31: =IF(AND(J31=0,I31=1),1,0) -> 1 | W31: - | X31: 2759 | Y31: 24 | Z31: =R2759 -> - | AA31: =S2759 -> - | AB31: - | AC31: =IF(LEFT(Z31,3)="Res",MAX(AC$6:AC30)+1,"-") -> - | AD31: - | AN31: =AN30 -> Y | AO31: 4 | AS31: Email | AV31: =IF(K31=1,"Must complete ->","") -> Must complete -> | AY31: =IF(I31=1,"*","") -> * | DD31: -
C32: - | D32: NULL | E32: constant | I32: 0 | J32: =IF(OR(AX:AX="",AX:AX="-",AX:AX=" "),0,1) -> 0 | K32: =IF(AND(J32=0,I32=1),1,0) -> 0 | W32: - | X32: 2871 | Y32: 25 | Z32: =R2871 -> - | AA32: =S2871 -> - | AB32: - | AC32: =IF(LEFT(Z32,3)="Res",MAX(AC$6:AC31)+1,"-") -> - | AD32: - | AN32: =AN31 -> Y | AO32: 3 | AS32: Additional Email(s) | DD32: -
C33: - | D33: NULL | E33: constant | I33: 1 | J33: =IF(OR(AX:AX="",AX:AX="-",AX:AX=" "),0,1) -> 0 | K33: =IF(AND(J33=0,I33=1),1,0) -> 1 | AN33: Y | AO33: 2 | AS33: Telephone No. | AV33: =IF(K33=1,"Must complete ->","") -> Must complete -> | AY33: =IF(I33=1,"*","") -> * | DD33: -
C34: - | D34: NULL | E34: constant | I34: 0 | J34: =IF(OR(AX:AX="",AX:AX="-",AX:AX=" "),0,1) -> 0 | K34: =IF(AND(J34=0,I34=1),1,0) -> 0 | Y34: Energy Centre RUs | AN34: Y | AO34: 1 | AS34: Mobile No. | DD34: -
Y35: Ref | Z35: Included? | AA35: Complete? | AB35: RU Name | AO35: 1 | DD35: -
N36: =(L38+L42+L57+L62) -> 4 | O36: =(M38+M42+M57+M62)/N36 -> 0.75 | P36: =ROUND(18*O36,0) -> 14 | X36: RU Row | Y36: 0 | Z36: - | AA36: - | AB36: - | AK36: =IF($R$9>0,1,0) -> 0 | AL36: 37 | AM36: 99 | AO36: 1 | AP36: =IF(AK36=1,"+","") ->  | AQ36: DEVELOPMENT INFORMATION | DD36: -
X37: =ROW(AQ2984) -> 2984 | Y37: 1 | Z37: =R2984 -> - | AA37: =S2984 -> - | AB37: - | AN37: =IF($R$9>0,"N","Y") -> Y | AO37: 63 | DD37: -
L38: =SUM(I39:I40) -> 1 | M38: =SUM(K39:K40) -> 1 | X38: =ROW(AQ3061) -> 3061 | Y38: =Y37+1 -> 2 | Z38: =R3061 -> - | AA38: =S3061 -> - | AB38: - | AN38: =IF($R$9>0,"N","Y") -> Y | AO38: 62 | AR38: OVERALL DEVELOPMENT DETAILS | DD38: -
C39: - | D39: NULL | E39: depends on stage | F39: 1 | G39: 0 | H39: 0 | I39: =IFERROR(INDEX(F39:H39,$R$9),0) -> 0 | J39: =IF(OR(AX:AX="",AX:AX="-",AX:AX=" "),0,1) -> 0 | K39: =IF(AND(J39=0,I39=1),1,0) -> 0 | X39: =X38+(X38-X37) -> 3138 | Y39: =Y38+1 -> 3 | Z39: =R3138 -> - | AA39: =S3138 -> - | AB39: - | AN39: =IF($R$9=1,"N","Y") -> Y | AO39: 61 | AS39: Planning Reference Number | AV39: =IF(K39=1,"Must complete ->","") ->  | AY39: =IF(I39=1,"*","") ->  | DD39: -
C40: - | D40: NULL | E40: constant | I40: 1 | J40: =IF(OR(AX:AX="",AX:AX="-",AX:AX=" "),0,1) -> 0 | K40: =IF(AND(J40=0,I40=1),1,0) -> 1 | X40: =X39+(X39-X38) -> 3215 | Y40: 4 | Z40: =R3215 -> - | AA40: =S3215 -> - | AB40: - | AN40: =IF($R$9>0,"N","Y") -> Y | AO40: 60 | AS40: Name of Whole Development | AV40: =IF(K40=1,"Must complete ->","") -> Must complete -> | AY40: =IF(I40=1,"*","") -> * | DD40: -
X41: =X40+(X40-X39) -> 3292 | Y41: 5 | Z41: =R3292 -> - | AA41: =S3292 -> - | AB41: - | AN41: =AN40 -> Y | AO41: 59 | DD41: -
L42: =SUM(I44:I54) -> 3 | M42: =SUM(K44:K54) -> 2 | AN42: =AN41 -> Y | AO42: 58 | AR42: DEVELOPMENT LOCATION | DD42: -
AN43: Y | AO43: 57 | AS43: Development Address | DD43: -
C44: - | D44: NULL | E44: constant | I44: 1 | J44: =IF(OR(AX:AX="",AX:AX="-",AX:AX=" "),0,1) -> 0 | K44: =IF(AND(J44=0,I44=1),1,0) -> 1 | AJ44: 1 | AN44: Y | AO44: 56 | AT44: Address Line 1 | AV44: =IF(K44=1,"Must complete ->","") -> Must complete -> | AY44: =IF(I44=1,"*","") -> * | DD44: -
C45: - | D45: NULL | E45: constant | I45: 0 | J45: 0 | K45: 0 | AJ45: 2 | AN45: Y | AO45: 55 | AT45: Address Line 2 | DD45: -
C46: - | D46: NULL | E46: constant | I46: 0 | J46: 0 | K46: 0 | AJ46: 3 | AN46: Y | AO46: 54 | AT46: Address Line 3 | DD46: -
C47: - | D47: NULL | E47: constant | I47: 0 | J47: 0 | K47: 0 | AJ47: 4 | AN47: Y | AO47: 53 | AT47: Address Line 4 | DD47: -
C48: - | D48: NULL | E48: constant | I48: 1 | J48: 1 | K48: 0 | AJ48: 5 | AN48: Y | AO48: 52 | AT48: London Borough | AV48: =IF(K48=1,"Must complete ->","") ->  | AX48: Select from list | AY48: =IF(I48=1,"*","") -> * | DD48: -
C49: - | D49: NULL | E49: constant | I49: 1 | J49: 0 | K49: 1 | AJ49: 6 | AN49: Y | AO49: 51 | AT49: Postcode | AV49: Must complete -> | AY49: =IF(I49=1,"*","") -> * | DD49: -
AN50: Y | AO50: 50 | AS50: Ordnance Survey Reference | DD50: -
C51: - | D51: NULL | E51: depends on stage | F51: 0 | G51: 0 | H51: 0 | I51: =IFERROR(INDEX(F51:H51,$R$9),0) -> 0 | J51: =IF(OR(AX:AX="",AX:AX="-",AX:AX=" "),0,1) -> 0 | K51: =IF(AND(J51=0,I51=1),1,0) -> 0 | AJ51: 7 | AN51: Y | AO51: 49 | AT51: Development UPRN (if available) | AV51: =IF(AND(I51=0,J51=0),"Please add if available ->",IF(K51=1,"Must complete ->","")) -> Please add if available -> | AY51: =IF(I51=1,"*","") ->  | DD51: -
AN52: Y | AO52: 48 | AS52: Geo-Location Coordinates | DD52: -
C53: Numerical (with limits) | D53: NULL | E53: constant | I53: 0 | J53: =IF(OR(AX:AX="",AX:AX="-",AX:AX=" "),0,1) -> 0 | K53: =IF(AND(J53=0,I53=1),1,0) -> 0 | AJ53: 8 | AN53: Y | AO53: 47 | AT53: Latitude (to 6 decimal places) | AV53: =IF(AND(I53=0,J53=0),"Please add if available ->","") -> Please add if available -> | DD53: -
C54: Numerical (with limits) | D54: NULL | E54: constant | I54: 0 | J54: =IF(OR(AX:AX="",AX:AX="-",AX:AX=" "),0,1) -> 0 | K54: =IF(AND(J54=0,I54=1),1,0) -> 0 | AJ54: 9 | AN54: Y | AO54: 46 | AT54: Longitude (to 6 decimal places, +ve or -ve) | AV54: =IF(AND(I54=0,J54=0),"Please add if available ->","") -> Please add if available -> | DD54: -
AN55: Y | AO55: 45 | DD55: -
AN56: =IF($R$9=1,"N","Y") -> Y | AO56: 44 | AR56: DEVELOPMENT TOTAL AREA BREAKDOWN | DD56: -
L57: =SUM(I58:I61) -> 0 | M57: =SUM(K58:K61) -> 0 | AN57: =AN56 -> Y | AO57: 43 | AS57: Residential | DD57: -
C58: Numerical (>=0) | D58: NULL | E58: depends on stage | F58: 1 | G58: 0 | H58: 0 | I58: =IFERROR(INDEX(F58:H58,$R$9),0) -> 0 | J58: =IF(OR(AX:AX="",AX:AX="-",AX:AX=" "),0,1) -> 0 | K58: =IF(AND(J58=0,I58=1),1,0) -> 0 | Q58: =AX:AX -> 0 | AN58: Y | AO58: 42 | AT58: Total Residential Floor Area | AU58: GIA m2 | AV58: =IF(K58=1,"Must complete ->","") ->  | AY58: =IF(I58=1,"*","") ->  | DD58: -
AN59: Y | AO59: 41 | AT59: Dwelling Counts | DD59: -
C60: Integer (>=0) | D60: NULL | E60: depends on stage and resi/non-resi | I60: =MIN(I58*Q58,1) -> 0 | J60: =IF(OR(AX:AX="",AX:AX="-",AX:AX=" "),0,1) -> 0 | K60: =IF(AND(J60=0,I60=1),1,0) -> 0 | AN60: Y | AO60: 40 | AT60: Flats | AU60: number | AV60: =IF(K60=1,"Must complete ->","") ->  | AY60: =IF(I60=1,"*","") ->  | DD60: -
C61: Integer (>=0) | D61: NULL | E61: depends on stage and resi/non-resi | I61: =I60 -> 0 | J61: =IF(OR(AX:AX="",AX:AX="-",AX:AX=" "),0,1) -> 0 | K61: 0 | AN61: Y | AO61: 39 | AT61: House | AU61: number | AY61: =IF(I61=1,"*","") ->  | DD61: -
L62: =I63 -> 0 | M62: =K63 -> 0 | AN62: Y | AO62: 38 | AS62: Non-Residential | DD62: -
E63: depends on stage | F63: 1 | G63: 0 | H63: 0 | I63: =IFERROR(INDEX(F63:H63,$R$9),0) -> 0 | J63: =MAX(J64:J93) -> 0 | K63: =IF(AND(J63=0,I63=1),1,0) -> 0 | R63: - | AN63: Y | AO63: 37 | AT63: Non-Residential Floor Area Breakdown | AX63: =IF(I63=1,"Please include complete non-resi details below","") ->  | DD63: -
C64: Numerical (>=0) | D64: NULL | I64: =I63 -> 0 | J64: =IF(OR(AX:AX="",AX:AX="-",AX:AX=" "),0,1) -> 0 | R64: =IF(AND(J64=1,AX:AX>0),IF(R63="-","",R63&"; ")&IFERROR(LEFT(AT64,FIND(" (",AT64)-1),AT64),R63) -> - | AN64: Y | AO64: 36 | AT64: Landlord Circulation (in Residential Blocks) | AU64: GIA m2 | AY64: =IF(I64=1,"*","") ->  | DD64: -
C65: Numerical (>=0) | D65: NULL | I65: =I64 -> 0 | J65: 0 | Q65: =AX:AX -> 0 | R65: - | AN65: Y | AO65: 35 | AT65: General office (A2, B1, B8, D1 planning classes) | AU65: GIA m2 | AY65: =IF(I65=1,"*","") ->  | DD65: -
C66: Numerical (>=0) | D66: NULL | I66: =I65 -> 0 | J66: 0 | R66: - | AN66: Y | AO66: 34 | AT66: High street agency (A2 planning classes) | AU66: GIA m2 | DD66: -
C67: Numerical (>=0) | D67: NULL | I67: 0 | J67: 0 | R67: - | AN67: Y | AO67: 33 | AT67: General retail (A1, SG planning classes) | AU67: GIA m2 | DD67: -
C68: Numerical (>=0) | D68: NULL | I68: 0 | J68: 0 | R68: - | AN68: Y | AO68: 32 | AT68: Large non-food shop (A1 planning classes) | AU68: GIA m2 | DD68: -
C69: Numerical (>=0) | D69: NULL | I69: 0 | J69: 0 | R69: - | AN69: Y | AO69: 31 | AT69: Small food store | AU69: GIA m2 | DD69: -
C70: Numerical (>=0) | D70: NULL | I70: 0 | J70: 0 | R70: - | AN70: Y | AO70: 30 | AT70: Large food store | AU70: GIA m2 | DD70: -
C71: Numerical (>=0) | D71: NULL | I71: 0 | J71: 0 | R71: - | AN71: Y | AO71: 29 | AT71: Restaurant (A3, A5 planning classes) | AU71: GIA m2 | DD71: -
C72: Numerical (>=0) | D72: NULL | I72: 0 | J72: 0 | R72: - | AN72: Y | AO72: 28 | AT72: Bar, pub or licensed club (A4 planning classes) | AU72: GIA m2 | DD72: -
C73: Numerical (>=0) | D73: NULL | I73: 0 | J73: 0 | R73: - | AN73: Y | AO73: =IF(AN74=AN73,AO74+1,1) -> 27 | AT73: Hotel (C1 planning classes) | AU73: GIA m2 | DD73: -
C74: Numerical (>=0) | D74: NULL | I74: 0 | J74: 0 | R74: - | AN74: Y | AO74: 26 | AT74: Cultural Activities | AU74: GIA m2 | DD74: -
C75: Numerical (>=0) | D75: NULL | I75: 0 | J75: 0 | R75: - | AN75: Y | AO75: 25 | AT75: Entertainment halls (D2 planning classes) | AU75: GIA m2 | DD75: -
C76: Numerical (>=0) | D76: NULL | I76: 0 | J76: 0 | R76: - | AN76: Y | AO76: 24 | AT76: Swimming pool centre | AU76: GIA m2 | DD76: -
C77: Numerical (>=0) | D77: NULL | I77: 0 | J77: 0 | R77: - | AN77: Y | AO77: 23 | AT77: Fitness and health centre | AU77: GIA m2 | DD77: -
C78: Numerical (>=0) | D78: NULL | I78: 0 | J78: 0 | R78: - | AN78: Y | AO78: 22 | AT78: Dry sports and leisure facility (D2 planning classes) | AU78: GIA m2 | DD78: -
C79: Numerical (>=0) | D79: NULL | I79: 0 | J79: 0 | R79: - | AN79: Y | AO79: 21 | AT79: Covered car park | AU79: GIA m2 | DD79: -
C80: Numerical (>=0) | D80: NULL | I80: 0 | J80: 0 | R80: - | AN80: Y | AO80: 20 | AT80: Public buildings with light usage (D1, SG planning classes) | AU80: GIA m2 | DD80: -
C81: Numerical (>=0) | D81: NULL | I81: 0 | J81: 0 | R81: - | AN81: Y | AO81: 19 | AT81: Schools and seasonal public buildings (D1, D2 planning classes) | AU81: GIA m2 | DD81: -
C82: Numerical (>=0) | D82: NULL | I82: 0 | J82: 0 | R82: - | AN82: Y | AO82: 18 | AT82: University campus | AU82: GIA m2 | DD82: -
C83: Numerical (>=0) | D83: NULL | I83: 0 | J83: 0 | R83: - | AN83: Y | AO83: 17 | AT83: Clinic (D1 planning classes) | AU83: GIA m2 | DD83: -
C84: Numerical (>=0) | D84: NULL | I84: 0 | J84: 0 | R84: - | AN84: Y | AO84: 16 | AT84: Hospital (clinical and research) | AU84: GIA m2 | DD84: -
C85: Numerical (>=0) | D85: NULL | I85: 0 | J85: 0 | R85: - | AN85: Y | AO85: 15 | AT85: Long term residential (C1, C2, C2A planning classes) | AU85: GIA m2 | DD85: -
C86: Numerical (>=0) | D86: NULL | I86: 0 | J86: 0 | R86: - | AN86: Y | AO86: 14 | AT86: General accommodation (C1, C2, C3 planning classes) | AU86: GIA m2 | DD86: -
C87: Numerical (>=0) | D87: NULL | I87: 0 | J87: 0 | R87: - | AN87: Y | AO87: 13 | AT87: Emergency services (SG planning classes) | AU87: GIA m2 | DD87: -
C88: Numerical (>=0) | D88: NULL | I88: 0 | J88: 0 | R88: - | AN88: Y | AO88: 12 | AT88: Laboratory or operating theatre | AU88: GIA m2 | DD88: -
C89: Numerical (>=0) | D89: NULL | I89: 0 | J89: 0 | R89: - | AN89: Y | AO89: 11 | AT89: Public waiting or circulation (SG planning classes) | AU89: GIA m2 | DD89: -
C90: Numerical (>=0) | D90: NULL | I90: 0 | J90: 0 | R90: - | AN90: Y | AO90: 10 | AT90: Terminal (B8 planning classes) | AU90: GIA m2 | DD90: -
C91: Numerical (>=0) | D91: NULL | I91: 0 | J91: 0 | R91: - | AN91: Y | AO91: 9 | AT91: Workshop (B1, B2 planning classes) | AU91: GIA m2 | DD91: -
C92: Numerical (>=0) | D92: NULL | I92: 0 | J92: 0 | R92: - | AN92: Y | AO92: 8 | AT92: Storage Facility (B8 planning classes) | AU92: GIA m2 | DD92: -
C93: Numerical (>=0) | D93: NULL | I93: 0 | J93: 0 | R93: - | AN93: Y | AO93: 7 | AT93: Cold Storage (B8 planning classes) | AU93: GIA m2 | DD93: -
AN94: Y | AO94: 6 | AS94: Overall Development Summary | DD94: -
AN95: Y | AO95: =IF(AN96=AN95,AO96+1,1) -> 5 | AT95: Total Development Floor Area | DD95: -
AN96: Y | AO96: 4 | AT96: Residential | AU96: GIA m2 | AX96: =Q58 -> 0 | DD96: -
AN97: Y | AO97: 3 | AT97: Non-Residential | AU97: GIA m2 | AX97: =SUM(AX63:AX94) -> 0 | DD97: -
AN98: Y | AO98: 2 | AT98: Total | AU98: GIA m2 | AX98: =AX96+AX97 -> 0 | DD98: -
R99: LARGE TEXT | AN99: Y | AO99: 1 | AT99: Total Non-Residential Uses | AX99: =IF(R93="-","There is no non-domestic floor area.",R93) -> There is no non-domestic floor area. | DD99: -
AO100: 1 | DD100: -
N101: =(L103+L113) -> 0 | O101: =(M103+M113)/N101 ->  | P101: =ROUND(18*O101,0) ->  | AK101: =IF($R$9=1,1,0) -> 0 | AL101: 102 | AM101: 115 | AN101: =IF($R$9=1,"N","Y") -> Y | AO101: 15 | AP101: =IF(AK101=1,"+","") ->  | AQ101: SUPPLEMENTARY FILES AND UPCOMING REPORTING STAGES | DD101: -
AN102: =AN101 -> Y | AO102: 14 | DD102: -
L103: =SUM(I105:I111) -> 0 | M103: =SUM(K105:K111) -> 0 | AN103: Y | AO103: 13 | AR103: SUPPLEMENTARY FILES | DD103: -
AN104: Y | AO104: 12 | AS104: Site Plan | DD104: -
C105: List | D105: Select from list | E105: depends on stage | F105: 1 | G105: 0 | H105: 0 | I105: =IFERROR(INDEX(F105:H105,$R$9),0) -> 0 | J105: =IF(OR(AX:AX="",AX:AX="-",AX:AX=" ",AX:AX="Select from list"),0,1) -> 0 | K105: =IF(AND(J105=0,I105=1),1,0) -> 0 | Q105: =IF(AX:AX="Yes",1,0) -> 0 | AL105: 106 | AM105: 111 | AN105: =AN104 -> Y | AO105: 11 | AT105: Does the development have a site plan? | AV105: =IF(K105=1,"Please select here ->","") ->  | AX105: Select from List | AY105: =IF(I105=1,"*","") ->  | DD105: -
C106: - | D106: NULL | E106: depends on stage & previous | F106: 1 | G106: 0 | H106: 0 | I106: =IF(Q105=1,IFERROR(INDEX(F106:H106,$R$9),0),0) -> 0 | J106: =IF(OR(AX:AX="",AX:AX="-",AX:AX=" "),0,1) -> 0 | K106: 0 | AN106: =IF(Q105=1,AN105,"Y") -> Y | AO106: 10 | AT106: What is the site plan filename? | AV106: =IF(K106=1,"Must complete ->","") ->  | AY106: =IF(I106=1,"*","") ->  | DD106: -
AN107: =AN104 -> Y | AO107: 9 | AS107: Best Practice Documents | DD107: -
C108: List | D108: Select from list | E108: depends on stage | F108: 1 | G108: 0 | H108: 0 | I108: =IFERROR(INDEX(F108:H108,$R$9),0) -> 0 | J108: =IF(OR(AX:AX="",AX:AX="-",AX:AX=" ",AX:AX="Select from list"),0,1) -> 0 | K108: =IF(AND(J108=0,I108=1),1,0) -> 0 | Q108: =IF(AX:AX="Yes",1,0) -> 0 | AL108: 109 | AM108: 111 | AN108: Y | AO108: 8 | AT108: Does the development have a predicted DEC? | AV108: =IF(K108=1,"Please select here ->","") ->  | AX108: Select from List | AY108: =IF(I108=1,"*","") ->  | DD108: -
C109: - | D109: NULL | E109: depends on stage & previous | F109: 1 | G109: 0 | H109: 0 | I109: =IF(Q108=1,IFERROR(INDEX(F109:H109,$R$9),0),0) -> 0 | J109: =IF(OR(AX:AX="",AX:AX="-",AX:AX=" "),0,1) -> 0 | K109: 0 | AN109: =IF(Q108=1,AN108,"Y") -> Y | AO109: 7 | AT109: What is the predicted DEC filename? | AV109: =IF(K109=1,"Must complete ->","") ->  | AY109: =IF(I109=1,"*","") ->  | DD109: -
C110: List | D110: Select from list | E110: depends on stage and office use | F110: 1 | G110: 0 | H110: 0 | I110: =IF(Q65=0,0,IFERROR(INDEX(F110:H110,$R$9),0)) -> 0 | J110: =IF(OR(AX:AX="",AX:AX="-",AX:AX=" ",AX:AX="Select from list"),0,1) -> 0 | K110: =IF(AND(J110=0,I110=1),1,0) -> 0 | Q110: =IF(AX:AX="Yes",1,0) -> 0 | AL110: 111 | AM110: 111 | AN110: =IF(Q65>0,AN104,"Y") -> Y | AO110: 6 | AT110: Is there a base building energy rating (in line with DFP)? | AV110: =IF(K110=1,"Please select here ->","") ->  | AX110: Select from list | AY110: =IF(I110=1,"*","") ->  | DD110: -
C111: - | D111: NULL | E111: depends on stage & previous | F111: 1 | G111: 0 | H111: 0 | I111: =IF(Q110=1,IFERROR(INDEX(F111:H111,$R$9),0),0) -> 0 | J111: =IF(OR(AX:AX="",AX:AX="-",AX:AX=" "),0,1) -> 0 | K111: 0 | AN111: =IF(Q110=1,AN110,"Y") -> Y | AO111: 5 | AT111: What is the DFP filename? | AV111: =IF(K111=1,"Must complete ->","") ->  | AY111: =IF(I111=1,"*","") ->  | DD111: -
AN112: =AN104 -> Y | AO112: 4 | DD112: -
L113: =SUM(I114:I115) -> 0 | M113: =SUM(K114:K115) -> 0 | AN113: =AN112 -> Y | AO113: 3 | AR113: ANTICIPATED DATES FOR UPCOMING REPORTING STAGES | DD113: -
C114: - | D114: NULL | E114: depends on stage | F114: 1 | G114: 0 | H114: 0 | I114: =IFERROR(INDEX(F114:H114,$R$9),0) -> 0 | J114: =IF(OR(AX:AX="",AX:AX="-",AX:AX=" "),0,1) -> 0 | K114: 0 | AN114: Y | AO114: 2 | AS114: As-Built Stage | AV114: =IF(K114=1,"Must complete ->","") ->  | AY114: =IF(I114=1,"*","") ->  | DD114: -
C115: - | D115: NULL | E115: depends on stage | F115: 1 | G115: 0 | H115: 0 | I115: =IFERROR(INDEX(F115:H115,$R$9),0) -> 0 | J115: =IF(OR(AX:AX="",AX:AX="-",AX:AX=" "),0,1) -> 0 | K115: 0 | AN115: Y | AO115: 1 | AS115: Operational Year 1 End | AV115: =IF(K115=1,"Must complete ->","") ->  | AY115: =IF(I115=1,"*","") ->  | DD115: -
AN116: Y | AO116: 1 | DD116: -
N117: =L121+L158 -> 0 | O117: =(M121+M158)/N117 ->  | P117: =ROUND(18*O117,0) ->  | AN117: Y | AO117: =IF(AN118=AN117,AO118+1,1) -> 2 | AP117: DEVELOPMENT PERFORMANCE AND EMISSIONS | AV117: =IF($R$9=0,"",IF(N117=0,"not req'd at this stage","Progress: "&ROUND(100*(1-O117),0)&"%")) ->  | AX117: =IF(OR(N117=0,$R$9=0),"",REPT("g",18-P117)&REPT("c",P117)) ->  | DD117: -
AN118: Y | AO118: 1 | DD118: -
AK119: =IF($R$9=1,1,0) -> 0 | AL119: 120 | AM119: 159 | AN119: Y | AO119: =IF(AN120=AN119,AO120+1,1) -> 42 | AP119: =IF(AK119=1,"+","") ->  | AQ119: DEVELOPMENT PERFORMANCE | DD119: -
AN120: Y | AO120: 41 | DD120: -
L121: =SUM(I123:I156) -> 0 | M121: =SUM(K123:K156) -> 0 | AN121: =AN120 -> Y | AO121: 40 | AR121: DEVELOPMENT OVERALL PREDICTED PERFORMANCE | DD121: -
AN122: =AN121 -> Y | AO122: 39 | AS122: Predicted Performance Calculation Details | DD122: -
C123: List_No_VBA | D123: Select from list | E123: depends on stage | F123: 1 | G123: 0 | H123: 0 | I123: =IFERROR(INDEX(F123:H123,$R$9),0) -> 0 | J123: =IF(OR(AX:AX="",AX:AX="-",AX:AX=" ",AX:AX="Select from list"),0,1) -> 0 | K123: =IF(AND(J123=0,I123=1),1,0) -> 0 | AN123: =AN122 -> Y | AO123: 38 | AT123: Fuel Carbon Intensity Source (aligned with planning energy statement) | AV123: =IF(K123=1,"Must complete ->","") ->  | AX123: Select from list | AY123: =IF(I123=1,"*","") ->  | DD123: -
AN124: Y | AO124: 37 | AS124: Residential Elements of the development | DD124: -
AN125: Y | AO125: 36 | AT125: Predicted Annual Energy Use | AX125: =IF(I126=1,"Fill in all applicable fuels below","") ->  | DD125: -
C126: Numerical (>=0) | D126: NULL | E126: depends on stage | F126: 1 | G126: 0 | H126: 0 | I126: =IFERROR(INDEX(F126:H126,$R$9),0) -> 0 | J126: =IF(OR(AX:AX="",AX:AX="-",AX:AX=" "),0,1) -> 0 | K126: =IF(AND(J126=0,I126=1),1,0) -> 0 | AN126: Y | AO126: 35 | AT126: Annual Electricity Use | AU126: kWh/yr | AV126: =IF(K126=1,"Must complete ->","") ->  | AY126: =IF(I126=1,"*","") ->  | DD126: -
C127: Numerical (>=0) | D127: NULL | E127: depends on stage | I127: =I126 -> 0 | J127: 0 | K127: =IF(AND(J127=0,I127=1),1,0) -> 0 | AN127: Y | AO127: 34 | AT127: Annual Gas Use | AU127: kWh/yr | AV127: =IF(K127=1,"Must complete ->","") ->  | AY127: =IF(I127=1,"*","") ->  | DD127: -
C128: Numerical (>=0) | D128: NULL | J128: 0 | AN128: Y | AO128: 33 | AT128: Annual Oil Use (if applicable) | AU128: kWh/yr | AY128: =AY127 ->  | DD128: -
C129: Numerical (>=0) | D129: NULL | J129: 0 | AN129: Y | AO129: 32 | AT129: Annual Biomass Use (if applicable) | AU129: kWh/yr | AY129: =AY128 ->  | DD129: -
C130: Numerical (>=0) | D130: NULL | J130: 0 | AN130: Y | AO130: 31 | AT130: Annual District Htg Use (if applicable) | AU130: kWh/yr | DD130: -
C131: Numerical (>=0) | D131: NULL | J131: 0 | AN131: Y | AO131: 30 | AT131: Annual District Clg Use (if applicable) | AU131: kWh/yr | DD131: -
C132: Numerical (>=0) | D132: NULL | J132: 0 | AN132: Y | AO132: 29 | AT132: Elec Generation, Gross (if applicable) | AU132: kWh/yr | DD132: -
C133: Numerical (>=0) | D133: NULL | J133: 0 | AN133: Y | AO133: 28 | AT133: Solar Thermal Generation (if applicable) | AU133: kWh/yr | DD133: -
C134: Numerical (>=0) | D134: NULL | E134: depends on stage | I134: =I127 -> 0 | J134: 0 | K134: =IF(AND(J134=0,I134=1),1,0) -> 0 | AN134: Y | AO134: 27 | AT134: Predicted Annual Carbon Emissions | AU134: tCO2/yr | AV134: =IF(K134=1,"Must complete ->","") ->  | AY134: =IF(I134=1,"*","") ->  | DD134: -
AN135: Y | AO135: 26 | AS135: Non-Residential Elements of the development (Part L Calculation) | DD135: -
AN136: Y | AO136: 25 | AT136: Predicted Annual Energy Use | AX136: =IF(I137=1,"Fill in all applicable fuels below","") ->  | DD136: -
C137: Numerical (>=0) | D137: NULL | E137: depends on stage | F137: 1 | G137: 0 | H137: 0 | I137: =IFERROR(INDEX(F137:H137,$R$9),0) -> 0 | J137: =IF(OR(AX:AX="",AX:AX="-",AX:AX=" "),0,1) -> 0 | K137: =IF(AND(J137=0,I137=1),1,0) -> 0 | AN137: Y | AO137: 24 | AT137: Annual Electricity Use | AU137: kWh/yr | AV137: =IF(K137=1,"Must complete ->","") ->  | AY137: =IF(I137=1,"*","") ->  | DD137: -
C138: Numerical (>=0) | D138: NULL | E138: depends on stage | I138: =I137 -> 0 | J138: 0 | K138: 0 | AN138: Y | AO138: 23 | AT138: Annual Gas Use | AU138: kWh/yr | AY138: =IF(I138=1,"*","") ->  | DD138: -
C139: Numerical (>=0) | D139: NULL | J139: 0 | AN139: Y | AO139: 22 | AT139: Annual Oil Use (if applicable) | AU139: kWh/yr | AY139: =AY138 ->  | DD139: -
C140: Numerical (>=0) | D140: NULL | J140: 0 | AN140: Y | AO140: 21 | AT140: Annual Biomass Use (if applicable) | AU140: kWh/yr | AY140: =AY139 ->  | DD140: -
C141: Numerical (>=0) | D141: NULL | J141: 0 | AN141: Y | AO141: 20 | AT141: Annual District Htg Use (if applicable) | AU141: kWh/yr | DD141: -
C142: Numerical (>=0) | D142: NULL | J142: 0 | AN142: Y | AO142: 19 | AT142: Annual District Clg Use (if applicable) | AU142: kWh/yr | DD142: -
C143: Numerical (>=0) | D143: NULL | J143: 0 | AN143: Y | AO143: 18 | AT143: Elec Generation, Gross (if applicable) | AU143: kWh/yr | DD143: -
C144: Numerical (>=0) | D144: NULL | J144: 0 | AN144: Y | AO144: 17 | AT144: Solar Thermal Generation (if applicable) | AU144: kWh/yr | DD144: -
C145: Numerical (>=0) | D145: NULL | E145: depends on stage | I145: =I138 -> 0 | J145: 0 | K145: =IF(AND(J145=0,I145=1),1,0) -> 0 | AN145: Y | AO145: 16 | AT145: Predicted Annual Carbon Emissions | AU145: tCO2/yr | AV145: =IF(K145=1,"Must complete ->","") ->  | AY145: =IF(I145=1,"*","") ->  | DD145: -
AN146: Y | AO146: 15 | AS146: Non-Residential Elements of the development (TM54 Calculation) | DD146: -
AN147: Y | AO147: 14 | AT147: Predicted Annual Energy Use | AX147: =IF(I148=1,"Fill in all applicable fuels below","") ->  | DD147: -
C148: Numerical (>=0) | D148: NULL | E148: depends on stage | F148: 1 | G148: 0 | H148: 0 | I148: =IFERROR(INDEX(F148:H148,$R$9),0) -> 0 | J148: =IF(OR(AX:AX="",AX:AX="-",AX:AX=" "),0,1) -> 0 | K148: =IF(AND(J148=0,I148=1),1,0) -> 0 | AN148: Y | AO148: 13 | AT148: Annual Electricity Use | AU148: kWh/yr | AV148: =IF(K148=1,"Must complete ->","") ->  | AY148: =IF(I148=1,"*","") ->  | DD148: -
C149: Numerical (>=0) | D149: NULL | E149: depends on stage | I149: =I148 -> 0 | J149: 0 | K149: =IF(AND(J149=0,I149=1),1,0) -> 0 | AN149: Y | AO149: 12 | AT149: Annual Gas Use | AU149: kWh/yr | AY149: =IF(I149=1,"*","") ->  | DD149: -
C150: Numerical (>=0) | D150: NULL | J150: 0 | AN150: Y | AO150: 11 | AT150: Annual Oil Use (if applicable) | AU150: kWh/yr | AY150: =AY149 ->  | DD150: -
C151: Numerical (>=0) | D151: NULL | J151: 0 | AN151: Y | AO151: 10 | AT151: Annual Biomass Use (if applicable) | AU151: kWh/yr | AY151: =AY150 ->  | DD151: -
C152: Numerical (>=0) | D152: NULL | J152: 0 | AN152: Y | AO152: 9 | AT152: Annual District Htg Use (if applicable) | AU152: kWh/yr | DD152: -
C153: Numerical (>=0) | D153: NULL | J153: 0 | AN153: Y | AO153: 8 | AT153: Annual District Clg Use (if applicable) | AU153: kWh/yr | DD153: -
C154: Numerical (>=0) | D154: NULL | J154: 0 | AN154: Y | AO154: 7 | AT154: Elec Generation, Gross (if applicable) | AU154: kWh/yr | DD154: -
C155: Numerical (>=0) | D155: NULL | J155: 0 | AN155: Y | AO155: 6 | AT155: Solar Thermal Generation (if applicable) | AU155: kWh/yr | DD155: -
C156: Numerical (>=0) | D156: NULL | E156: depends on stage | I156: =I149 -> 0 | J156: 0 | K156: 0 | AN156: Y | AO156: 5 | AT156: Predicted Annual Carbon Emissions | AU156: tCO2/yr | AV156: =IF(K156=1,"Must complete ->","") ->  | AY156: =IF(I156=1,"*","") ->  | DD156: -
AN157: Y | AO157: 4 | DD157: -
L158: =SUM(I159:I160) -> 0 | M158: =SUM(K159:K160) -> 0 | AN158: Y | AO158: 3 | AR158: CARBON OFFSETTING | DD158: -
C159: Numerical (>=0) | D159: NULL | E159: depends on stage | F159: 1 | G159: 0 | H159: 0 | I159: =IFERROR(INDEX(F159:H159,$R$9),0) -> 0 | J159: =IF(OR(AX:AX="",AX:AX="-",AX:AX=" "),0,1) -> 0 | K159: =IF(AND(J159=0,I159=1),1,0) -> 0 | AN159: =AN157 -> Y | AO159: 2 | AS159: Predicted Carbon Shortfall (aligned with planning energy statement) | AU159: tCO2 | AV159: =IF(K159=1,"Must complete ->","") ->  | AY159: =IF(I159=1,"*","") ->  | DD159: -
C160: Numerical (>=0) | D160: NULL | E160: depends on stage | I160: =I159 -> 0 | J160: =IF(OR(AX:AX="",AX:AX="-",AX:AX=" "),0,1) -> 0 | K160: =IF(AND(J160=0,I160=1),1,0) -> 0 | AN160: Y | AO160: 1 | AS160: Total Committed Carbon Offset | AU160: £ | AV160: =IF(K160=1,"Must complete ->","") ->  | AY160: =IF(I160=1,"*","") ->  | DD160: -
AN161: Y | AO161: 1 | DD161: -
L162: =IF($R$9>1,IF(SUM(Y168:Y169)=0,1,0),0) -> 0 | M162: =L162 -> 0 | N162: =T168+AX176 -> 0 | O162: =((T168-SUM(T171:T175))+(AX176-T176))/N162 ->  | P162: =ROUND(18*O162,0) ->  | AN162: =IF($R$9>1,"N","Y") -> Y | AO162: =IF(AN163=AN162,AO163+1,1) -> 2 | AP162: REPORTABLE UNITS | AV162: =IF($R$9=0,"",IF(N162=0,"no RUs currently listed","Progress: "&ROUND(100*(1-O162),0)&"%")) ->  | AX162: =IF(OR(N162=0,$R$9=0),"",REPT("g",18-P162)&REPT("c",P162)) ->  | DD162: -
AN163: =AN162 -> Y | AO163: 1 | DD163: -
AK164: =IF($R$9>1,1,0) -> 0 | AL164: 165 | AM164: 181 | AN164: Y | AO164: =IF(AN165=AN164,AO165+1,1) -> 19 | AP164: =IF(AK164=1,"+","") ->  | AQ164: REPORTABLE UNITS SUMMARY | DD164: -
AN165: Y | AO165: =IF(AN166=AN165,AO166+1,1) -> 18 | DD165: -
R166: RU Count | AN166: Y | AO166: 17 | AR166: REPORTABLE UNITS BREAKDOWN | DD166: -
R167: Progress | S167: RU Type | T167: No. | AN167: Y | AO167: 16 | AS167: Total RUs in Development | DD167: -
C168: List | D168: NULL | E168: depends on stage | I168: =I169 -> 0 | J168: 0 | K168: 0 | R168: Listed | S168: Resi | T168: =IF(I168=0,0,Y168) -> 0 | Y168: =AX:AX -> 0 | AL168: =ROW(B182) -> 182 | AM168: =ROW(B2983) -> 2983 | AN168: =AN167 -> Y | AO168: 15 | AT168: Total Number of Residential/Non-Residential RUs | AV168: =IF(K168=1,"Must complete ->","") ->  | AY168: =IF(I168=1,"*","") ->  | DD168: -
C169: List | D169: NULL | E169: depends on stage | I169: 0 | J169: 0 | K169: 0 | S169: Non-Resi | T169: =IF(I169=0,0,Y169) -> 0 | Y169: =AX:AX -> 0 | AL169: =ROW(B2983) -> 2983 | AM169: =ROW(B3369) -> 3369 | AN169: Y | AO169: 14 | AT169: Total Number of Energy Centre RUs | AV169: =IF(K169=1,"Must complete ->","") ->  | AY169: =IF(I169=1,"*","") ->  | DD169: -
E170: depends on stage | F170: 0 | G170: 1 | H170: 1 | I170: =IFERROR(INDEX(F170:H170,$R$9),0) -> 0 | J170: =IF(T170=0,0,1) -> 0 | K170: =IF(AND(J170=0,I170=1),1,0) -> 0 | S170: Total | T170: =SUM(T168:T169) -> 0 | AN170: Y | AO170: 13 | AS170: RU Types Within Development | DD170: -
R171: Complete RUs | S171: =AT171 -> Residential (new build) | T171: =COUNTIFS($AA$7:$AA$41,AT171) -> 0 | AN171: Y | AO171: 12 | AT171: Residential (new build) | AX171: =COUNTIFS($Z$7:$Z$41,AT171) -> 0 | DD171: -
S172: =AT172 -> Residential (refurb) | T172: 0 | AN172: Y | AO172: 11 | AT172: Residential (refurb) | AX172: 0 | DD172: -
S173: Non-Residential (new build) | T173: 0 | AN173: Y | AO173: 10 | AT173: Non-Residential (new build) | AX173: 0 | DD173: -
S174: Non-Residential (refurb) | T174: 0 | AN174: Y | AO174: 9 | AT174: Non-Residential (refurb) | AX174: 0 | DD174: -
S175: Landlord area in residential RU | T175: 0 | AN175: Y | AO175: 8 | AT175: Landlord area in residential RU | AX175: 0 | DD175: -
S176: Energy Centre RU | T176: 0 | AN176: Y | AO176: 7 | AT176: Energy Centre RU | AX176: 0 | DD176: -
AN177: Y | AO177: 6 | DD177: -
AN178: =AN177 -> Y | AO178: 5 | AR178: REPORTABLE UNITS ADDRESS DATA | DD178: -
AN179: Y | AO179: =IF(AN180=AN179,AO180+1,1) -> 4 | AS179: Addresses are required for each Reportable Unit. To copy the address listed for the | DD179: -
AN180: =AN179 -> Y | AO180: 3 | AT180: overall development (rows 43:54) to each Reportable Unit, press the button to the | DD180: -
AN181: =AN180 -> Y | AO181: 2 | AT181: right. Otherwise, the address will need to be manually entered for each RU. | DD181: -
B182: BLDGS BELOW | AG182: Res | AH182: Non | AI182: Lan | AN182: Y | AO182: 1 | DD182: -
B183: BUILDING RU START | N183: =SUM(L185:L287) -> 0 | O183: =SUM(M185:M287)/N183 ->  | P183: =ROUND(18*O183,0) ->  | R183: =IF(AF183=1,Q186,"-") -> - | S183: =IFERROR(IF(OR(AF183=0,O183<>0),"-",R183),"-") -> - | T183: =IF(AF183=1,Q190,"-") -> - | AE183: 1 | AF183: =IF(OR(AE183>$T$168,$R$9<=1),0,1) -> 0 | AG183: =IF($AF183=0,0,IF(LEFT($Q186,3)="Res",1,0)) -> 0 | AH183: =IF($AF183=0,0,IF(LEFT($Q186,3)="Non",1,0)) -> 0 | AI183: =IF($AF183=0,0,IF(LEFT($Q186,3)="Lan",1,0)) -> 0 | AK183: =AF183 -> 0 | AL183: =ROW()+1 -> 184 | AM183: =ROW(AT293) -> 293 | AN183: =IF(AND($R$9>1,AF183=1),"N","Y") -> Y | AO183: 2801 | AP183: =IF(AK183=1,"+","") ->  | AQ183: =" BUILDINGS REPORTABLE UNIT "&AE183 -> BUILDINGS REPORTABLE UNIT 1 | AV183: =IF($R$9=0,"",IF(N183=0,"not req'd at this stage","Progress: "&ROUND(100*(1-O183),0)&"%")) ->  | AX183: =IF(OR(N183=0,$R$9=0),"",REPT("g",18-P183)&REPT("c",P183)) ->  | DD183: -
AN184: =AN183 -> Y | AO184: 2800 | DD184: -
L185: =SUM(I186:I187) -> 0 | M185: =SUM(K186:K187) -> 0 | AN185: =AN184 -> Y | AO185: 2799 | AR185: =" BUILDINGS REPORTABLE UNIT "&AE183&": KEY DETAILS" -> BUILDINGS REPORTABLE UNIT 1: KEY DETAILS | DD185: -
C186: List | D186: Select from list | E186: depends on stage and RU existence | F186: 0 | G186: 1 | H186: 1 | I186: =IF(AF183=0,0,IFERROR(INDEX(F186:H186,$R$9),0)) -> 0 | J186: =IF(OR(AX:AX="",AX:AX="-",AX:AX=" ",AX:AX="Select from list"),0,1) -> 0 | K186: =IF(AND(J186=0,I186=1),1,0) -> 0 | Q186: =IF(AND(AX:AX<>"Select from list",AX:AX<>""),AX:AX,"-") -> - | AL186: =ROW()+1 -> 187 | AM186: =ROW(AR260) -> 260 | AN186: =AN185 -> Y | AO186: 2798 | AS186: Reportable Unit Type | AV186: =IF(K186=1,"Must complete ->","") ->  | AX186: Select from list | AY186: =IF(I186=1,"*","") ->  | DD186: -
C187: List_No_VBA | D187: Select from list | E187: depends on stage and RU type | F187: 0 | G187: 1 | H187: 1 | I187: =IF(AI183<>1,0,IFERROR(INDEX(F187:H187,$R$9),0)) -> 0 | J187: =IF(OR(AI183=0,Q187="-"),0,IF(ISERROR(MATCH(Q187,$W$8:$W$32,0)),0,1)) -> 0 | K187: =IF(AND(J187=0,I187=1),1,0) -> 0 | Q187: =IF(AND(AX:AX<>"Select from list",AX:AX<>"",AX:AX<>"No residential RUs listed"),IFERROR(LEFT(AX:AX,FIND("(",AX:AX)-2),"-"),"-") -> - | AN187: =IF(AI183=1,AN183,"Y") -> Y | AO187: 2797 | AS187: Which residential RU does this landlord area belong to? | AV187: =IF(K187=1,"Select resi RU ->","") ->  | AX187: Select from list | AY187: =IF(I187=1,"*","") ->  | DD187: -
AN188: =AN183 -> Y | AO188: 2796 | DD188: -
L189: =SUM(I190:I202) -> 0 | M189: =SUM(K190:K202) -> 0 | AN189: =AN188 -> Y | AO189: 2795 | AR189: =" BUILDINGS REPORTABLE UNIT "&AE183&": ADDRESS/LOCATION INFORMATION" -> BUILDINGS REPORTABLE UNIT 1: ADDRESS/LOCATION INFORMATION | DD189: -
C190: - | D190: NULL | E190: depends on stage | F190: 0 | G190: 1 | H190: 1 | I190: =IF(AF183=0,0,IFERROR(INDEX(F190:H190,$R$9),0)) -> 0 | J190: =IF(OR(AX:AX="",AX:AX="-",AX:AX=" "),0,1) -> 0 | K190: =IF(AND(J190=0,I190=1),1,0) -> 0 | Q190: =IF(AND(AX:AX<>" ",AX:AX<>"-",AX:AX<>""),AX:AX,"Name not yet provided") -> Name not yet provided | AN190: =AN189 -> Y | AO190: 2794 | AS190: Name/Reference of RU | AV190: =IF(K190=1,"Must complete ->","") ->  | AY190: =IF(I190=1,"*","") ->  | DD190: -
AN191: Y | AO191: 2793 | AS191: Reportable Unit Address | DD191: -
C192: - | D192: NULL | E192: depends on stage | F192: 0 | G192: 1 | H192: 1 | I192: =IF(AF183=0,0,IFERROR(INDEX(F192:H192,$R$9),0)) -> 0 | J192: =IF(OR(AX:AX="",AX:AX="-",AX:AX=" "),0,1) -> 0 | K192: =IF(AND(J192=0,I192=1),1,0) -> 0 | AJ192: 1 | AN192: Y | AO192: 2792 | AT192: Address Line 1 | AV192: =IF(K192=1,"Must complete ->","") ->  | AY192: =IF(I192=1,"*","") ->  | DD192: -
C193: - | D193: NULL | E193: constant | I193: 0 | J193: 0 | K193: 0 | AJ193: 2 | AN193: Y | AO193: 2791 | AT193: Address Line 2 | DD193: -
C194: - | D194: NULL | E194: constant | I194: 0 | J194: 0 | K194: 0 | AJ194: 3 | AN194: Y | AO194: 2790 | AT194: Address Line 3 | DD194: -
C195: - | D195: NULL | E195: constant | I195: 0 | J195: 0 | K195: 0 | AJ195: 4 | AN195: Y | AO195: 2789 | AT195: Address Line 4 | DD195: -
C196: - | D196: NULL | E196: depends on stage | F196: 0 | G196: 1 | H196: 1 | I196: =I192 -> 0 | J196: 0 | K196: 0 | AJ196: 5 | AN196: Y | AO196: 2788 | AT196: Post Town | AV196: =IF(K196=1,"Must complete ->","") ->  | AY196: =IF(I196=1,"*","") ->  | DD196: -
C197: - | D197: NULL | E197: depends on stage | F197: 0 | G197: 1 | H197: 1 | I197: =I192 -> 0 | J197: 0 | K197: 0 | AJ197: 6 | AN197: =AN196 -> Y | AO197: 2787 | AT197: Postcode | AV197: =IF(K197=1,"Must complete ->","") ->  | AY197: =IF(I197=1,"*","") ->  | DD197: -
AN198: Y | AO198: 2786 | AS198: Ordnance Survey Reference | DD198: -
C199: - | D199: NULL | E199: depends on stage on RU | F199: 0 | G199: 0 | H199: 1 | I199: =IF(AF183=0,0,IFERROR(INDEX(F199:H199,$R$9),0)) -> 0 | J199: =IF(OR(AX:AX="",AX:AX="-",AX:AX=" "),0,1) -> 0 | K199: =IF(AND(J199=0,I199=1),1,0) -> 0 | AJ199: 7 | AN199: Y | AO199: 2785 | AT199: Development UPRN (if available) | AV199: =IF(AND(I199=0,J199=0,AF183=1),"Please add if available ->",IF(K199=1,"Must complete ->","")) ->  | AY199: =IF(I199=1,"*","") ->  | DD199: -
AN200: Y | AO200: 2784 | AS200: Geo-Location Coordinates | DD200: -
... 362 more rows

Sheet Version_Control (hidden)
B3: VERSION CONTROL NOTES
C5: VERSION | D5: FILENAME | E5: DATE | F5: NOTES | G5: PUBLIC RELEASE?
C6: v16-027 | D6: Be Seen data collection mock_up v16_027.xlsm | E6: 2020-04-02 | F6: Working file, sent to GLA | G6: N
C7: v16-071 | D7: Be Seen data collection mock_up v16_071.xlsm | E7: 2020-04-30 | F7: Working file, except for all RUs | G7: N
C8: v16-073 | D8: Be Seen data collection mock_up v16_073.xlsm | E8: 2020-04-30 | F8: Working file, all RUs | G8: N
C9: v16-074 | D9: Be Seen data collection mock_up v16_074.xlsm | E9: 2020-04-30 | F9: Added total unlocker | G9: N
C10: v16-078 | D10: Be Seen data collection mock_up v16_078.xlsm | E10: 2020-04-30 | F10: Dealt with scroll problem | G10: N
C11: v16-082 | D11: Be Seen data collection mock_up v16_082.xlsm | E11: 2020-05-08 | F11: Final minor updates | G11: Y
C12: v16-083 | D12: Be Seen data collection mock_up v16_083.xlsm | E12: 2020-05-14 | F12: Minor change to show/hide | G12: Y
C13: v16-084 | E13: 2020-03-10 | F13: Added LPA dropdown, updated email address and added declaration box | G13: N
C14: v16-085 | E14: 2020-03-24 | F14: Amends as email for copy on intstructions

Sheet Internal_Notes (hidden)
B3: INTERNAL NOTES
C5: Progress Notes Apr 2020 (since v16-027)
D7: Done | E7: Fix cell input types
E8: Change the structure of all_inputs worksheet
E9: Change the instructions worksheet
E10: Change style on the version_control spreadsheet
E11: Protect worksheet and VBA
E12: Go through the comments DOC file
E13: Shift Mayor of London logo on All_Inputs
E14: Update VBA controls (columns B:Z in the all_inputs worksheet)
E15: Hide extra columns (to right from worksheet area) and rows (from yellow cells)
E16: Convert off-white fills to no-fills
E17: Set reset workbook button
E18: Update VBA (address copy button) - it shouldn't appear when not needed
E19: Update VBA (hide/show cells)
E20: Reinstate address copy VBA button
E21: Update VBA to protect workbook structure (and windows?) and VBA
E22: Repeat to 25 building RU
E23: Remove columns DE:DM
E24: Update version_control
C26: Buttons
C30: Borough List
E32: Select from list
E33: Bexley
E34: Barnet
E35: Barking & Dagenham
E36: Brent
E37: Bromley
E38: Camden
E39: City of London
E40: Croydon
E41: Ealing
E42: Enfield
E43: Greenwich
E44: Hackney
E45: Hammersmith and Fulham
E46: Haringey
E47: Harrow
E48: Havering
E49: Hillingdon
E50: Hounslow
E51: Islington
E52: Kensington and Chelsea
E53: Kingston upon Thames
E54: Lambeth
E55: Lewisham
E56: Merton
E57: Newham
E58: Redbridge
E59: Richmond upon Thames
E60: Southwark
E61: Sutton
E62: Tower Hamlets
E63: Waltham Forest
E64: Wandsworth
E65: Westminster
E66: OPDC
E67: LLDC
C68: Process
D69: When creating the final files:
E70: 1 | F70: Reset Input Data: Run VBA code ResetAllInputs
E71: 2 | F71: Protect Workbook: Run VBA code TempProtect
E72: 3 | F72: Hide & lock VBA code (right-click > VBAProject Properties)
D73: When unlocking
E74: 1 | F74: Unlock the VBA code
E75: 2 | F75: Run the TempUnprotect VBA code
E76: OR
E77: 1 | F77: Click on the Mayor of London logo on Instructions worksheet
E78: 2 | F78: Type in the password
C80: Adjusting the VBA code based on the rows within All_Inputs worksheet
D81: Code to create code for the All_Inputs sheet
D82: Each bit of text should be added to All_Inputs
E83: Private Sub Worksheet_Change(ByVal target As Range)
F84: col DE | G84: IF(C1="List",COUNTIF(C$1:C1,"List"),0)
F85: col DF | G85: IF(DE1=0,"%%%",IF(DE1>1,"Else","")&SUBSTITUTE("If Not Intersect(target, ThisWorkbook.Worksheets("&CHAR(34)&"All_Inputs"&CHAR(34)&").Range("&CHAR(34)&"AXRowHere"&CHAR(34)&")) Is Nothing Then","RowHere",ROW()))
F86: col DG | G86: IF(DE1=0,"%%%",SUBSTITUTE(" RowCheck = RowHere","RowHere",ROW()))
F87: col DH | G87: IF(DE1<>1,"%%%"," HideControlColumnYN = 1")
E88: Private Sub worksheet_selectionchange(ByVal target As Range)
F89: col DJ | G89: IF(AND(ROW()>6,AK1<>""),1,0)
F90: col DK | G90: IF(DJ1=0,"%%%",IF(SUM(DJ$1:DJ1)>1,"Else","")&SUBSTITUTE("If Not Intersect(target, ThisWorkbook.Worksheets("&CHAR(34)&"All_Inputs"&CHAR(34)&").Range("&CHAR(34)&"APRowHere"&CHAR(34)&")) Is Nothing Then","RowHere",ROW()))
F91: col DL | G91: IF(DJ1=0,"%%%",SUBSTITUTE(" RowCheck = RowHere","RowHere",ROW()))
F92: col DM | G92: IF(DJ1=0,"%%%"," HideControlButtonYN = 1")
C94: Note
D95: Annoying bug with Excel in terms of hiding rows and shapes within worksheets, which is connected to the locking/unlocking of cells for protection.
